bitfinex/quotes_SOLUSD_20250118
["timestamp","ask_amount","ask_price","bid_price","bid_amount"]
[1737171060829,0.03,227.86,227.85,26.43337411]
[1737171061733,1.0,227.95,227.88,20.0]
[1737171062035,1.0,227.95,227.94,26.43337411]
[1737171062226,1.0,227.95,227.94,34.29337411]
[1737171062403,1.443163,228.0,227.97,20.0]
[1737171062601,0.34796524,228.06,227.98,0.65778625]
[1737171062804,0.34796524,228.06,228.05,26.43337411]
[1737171063019,0.044478,228.08,228.05,52.86674822]
[1737171063223,26.43337411,228.29,228.19,26.43337411]
[1737171063399,12.5017,228.31,228.17,34.33337411]
[1737171063400,26.43337411,228.26,228.17,34.33337411]
[1737171063798,12.5017,228.31,228.03,27.09079905]
[1737171063799,164.63205411,228.2,228.03,7.88]
[1737171064007,138.19868,228.2,228.04,0.65759007]
[1737171064215,138.19868,228.2,228.17,26.43337411]
[1737171064544,138.19868,228.2,228.19,26.43337411]
[1737171065209,138.19868,228.2,228.17,26.43337411]
[1737171065520,138.19868,228.2,228.15,26.43337411]
[1737171065725,138.19868,228.2,228.19,26.43337411]
[1737171065933,138.19868,228.2,228.17,26.43337411]
[1737171066622,138.19868,228.2,228.19,46.43337411]
[1737171067010,138.19868,228.2,228.15,26.43337411]
[1737171067408,138.19868,228.2,228.17,26.43337411]
[1737171068726,138.22868,228.2,228.19,20.0]
[1737171069134,138.22868,228.2,228.19,26.43337411]
[1737171069742,138.22868,228.2,228.17,26.43337411]
[1737171070248,138.22868,228.2,228.19,26.43337411]
[1737171070611,164.66205411,228.2,227.94,0.063]
[1737171070806,138.22868,228.2,228.13,26.43337411]
[1737171071032,138.22868,228.2,228.15,26.43337411]
[1737171071536,26.43337411,228.18,228.08,7.86]
[1737171071741,26.43337411,228.16,228.08,34.29337411]
[1737171072106,26.43337411,228.18,228.08,34.29337411]
[1737171072313,164.66205411,228.2,228.12,26.43337411]
[1737171072625,138.22868,228.2,228.14,26.43337411]
[1737171072824,138.22868,228.2,228.17,20.0]
[1737171073025,138.22868,228.2,228.14,26.43337411]
[1737171073222,138.22868,228.2,228.17,20.0]
[1737171073618,52.86674822,228.18,227.8,12.52764253]
[1737171073831,26.43337411,228.09,228.0,26.43337411]
[1737171074015,26.43337411,228.05,227.95,34.25337411]
[1737171074337,7.9872,228.13,227.86,47.32]
[1737171074338,13.1255,227.96,227.86,47.32]
[1737171074520,26.2955,227.96,227.71,0.063]
[1737171074726,13.17,227.93,227.71,0.063]
[1737171075516,26.43337411,227.8,227.71,26.49637411]
[1737171075717,26.43337411,227.92,227.73,26.43337411]
[1737171075718,26.43337411,227.82,227.73,26.43337411]
[1737171076022,26.43337411,227.92,227.71,0.063]
[1737171076023,26.43337411,227.86,227.71,0.063]
[1737171076227,26.43337411,227.78,227.71,0.063]
[1737171076621,26.43337411,227.76,227.71,0.063]
[1737171076820,26.43337411,227.78,227.71,0.063]
[1737171077228,26.43337411,227.72,227.71,0.063]
[1737171077520,7.5012,227.71,227.55,34.23337411]
[1737171077740,26.43337411,227.65,227.57,26.43337411]
[1737171077914,7.5012,227.71,227.44,47.32]
[1737171078112,20.0,227.68,227.44,47.32]
[1737171078360,10.968,227.94,227.45,0.6595502]
[1737171078521,4.3863,227.98,227.45,0.6595502]
[1737171078522,4.3863,227.98,227.46,8.0801]
[1737171078849,15.3521,227.98,227.47,72.84759616]
[1737171079014,13.2112,227.99,227.48,0.80383832]
[1737171079213,26.43337411,227.91,227.8,26.43337411]
[1737171079617,26.43337411,227.93,227.85,20.0]
[1737171080232,26.43337411,227.95,227.87,20.0]
[1737171082027,26.43337411,227.89,227.76,26.43337411]
[1737171082227,26.43337411,227.88,227.79,26.43337411]
[1737171082645,26.43337411,227.86,227.75,26.43337411]
[1737171082944,26.43337411,227.9,227.81,26.43337411]
[1737171083167,17.5973,227.99,227.83,26.43337411]
[1737171083168,26.43337411,227.94,227.83,26.43337411]
[1737171083449,26.43337411,227.92,227.83,26.43337411]
[1737171084034,26.43337411,227.92,227.81,26.43337411]
[1737171084222,26.43337411,227.86,227.77,26.43337411]
[1737171084425,26.43337411,227.81,227.71,26.43337411]
[1737171084957,26.43337411,227.76,227.67,26.43337411]
[1737171085157,13.2112,228.29,227.69,12.9071]
[1737171085363,3.309374,228.09,228.03,26.43337411]
[1737171085666,7.5012,228.18,227.63,218.89368757]
[1737171085954,7.5012,228.18,227.67,0.65848715]
[1737171086254,7.5012,228.18,227.68,0.65851624]
[1737171086460,26.43337411,228.07,227.97,26.43337411]
[1737171086837,26.43337411,228.05,227.95,46.43337411]
[1737171087043,26.43337411,228.07,227.97,26.43337411]
[1737171087553,26.43337411,228.13,228.03,26.43337411]
[1737171088131,26.43337411,228.04,227.94,26.43337411]
[1737171088341,26.43337411,228.08,228.0,20.0]
[1737171088530,26.43337411,228.08,227.97,26.43337411]
[1737171088747,26.43337411,227.99,227.88,26.43337411]
[1737171088959,26.43337411,227.97,227.88,26.43337411]
[1737171089156,26.43337411,228.03,227.95,20.0]
[1737171089368,26.43337411,228.03,227.92,26.43337411]
[1737171089935,26.43337411,228.03,227.81,26.43337411]
[1737171089936,26.43337411,227.97,227.87,26.43337411]
[1737171090272,26.43337411,227.99,227.89,26.43337411]
[1737171090569,26.43337411,228.01,227.91,26.43337411]
[1737171090740,26.43337411,228.03,227.93,26.43337411]
[1737171091057,26.43337411,228.15,228.04,20.0]
[1737171091265,39.60337411,228.09,227.99,26.43337411]
[1737171091443,39.60337411,228.09,228.01,26.43337411]
[1737171091635,4.3826,228.17,228.01,26.43337411]
[1737171091836,26.43337411,228.12,228.01,26.43337411]
[1737171092045,26.43337411,228.08,227.97,26.43337411]
[1737171092456,26.43337411,228.1,227.99,26.43337411]
[1737171092770,26.43337411,228.1,228.01,26.43337411]
[1737171093062,26.43337411,228.1,227.99,26.43337411]
[1737171093272,26.43337411,228.08,227.99,26.43337411]
[1737171093463,26.43337411,228.08,227.97,26.43337411]
[1737171094070,39.60337411,228.05,227.95,26.43337411]
[1737171094269,26.43337411,228.05,227.95,26.43337411]
[1737171094572,26.43337411,228.07,227.97,26.40937412]
[1737171094874,26.43337411,228.03,227.93,26.43337411]
[1737171095045,26.43337411,228.05,227.95,26.43337411]
[1737171095469,26.43337411,228.05,227.97,26.43337411]
[1737171095683,26.43337411,228.05,227.95,26.43337411]
[1737171095874,26.43337411,227.99,227.89,26.43337411]
[1737171096172,26.43337411,228.03,227.93,26.43337411]
[1737171096549,26.43337411,228.01,227.91,26.43337411]
[1737171096965,26.43337411,228.01,227.93,26.43337411]
[1737171097855,26.43337411,228.05,227.97,26.43337411]
[1737171098954,26.43337411,228.05,227.96,26.43337411]
[1737171099156,26.43337411,228.0,227.92,26.43337411]
[1737171099377,4.4137,228.12,227.84,47.34]
[1737171099378,26.43337411,228.04,227.96,26.43337411]
[1737171099581,26.43337411,228.06,227.96,26.43337411]
[1737171100075,26.43337411,228.08,227.98,26.43337411]
[1737171100379,26.43337411,228.06,227.98,26.43337411]
[1737171100550,26.43337411,228.08,227.98,26.43337411]
[1737171100754,26.43337411,228.1,228.0,26.43337411]
[1737171100959,26.43337411,228.08,227.98,26.43337411]
[1737171101378,26.43337411,228.08,228.0,26.43337411]
[1737171101562,26.43337411,228.08,227.98,26.43337411]
[1737171102584,26.43337411,228.06,227.96,26.43337411]
[1737171102764,4.384,228.1,227.96,26.43337411]
[1737171102765,26.43337411,228.04,227.96,26.43337411]
[1737171103076,26.43337411,228.06,227.96,26.43337411]
[1737171103388,26.43337411,228.04,227.94,26.43337411]
[1737171103594,26.43337411,228.04,227.96,26.43337411]
[1737171103886,26.43337411,228.09,227.99,26.43337411]
[1737171104058,26.43337411,228.09,228.02,20.0]
[1737171105171,26.43337411,228.07,227.97,26.43337411]
[1737171105373,26.43337411,228.03,227.93,26.43337411]
[1737171105579,26.43337411,228.07,227.99,26.43337411]
[1737171105883,26.43337411,228.09,228.02,20.0]
[1737171106186,26.43337411,228.09,227.99,26.43337411]
[1737171107282,26.43337411,228.02,227.86,9.22]
[1737171107466,26.43337411,228.02,227.91,26.43337411]
[1737171107959,26.43337411,228.0,227.91,26.43337411]
[1737171108173,26.43337411,227.98,227.87,26.43337411]
[1737171108354,26.43337411,228.02,227.93,26.43337411]
[1737171108560,26.43337411,227.98,227.89,26.43337411]
[1737171109885,26.43337411,227.98,227.86,26.43337411]
[1737171110090,26.43337411,227.92,227.84,26.43337411]
[1737171110965,26.43337411,227.92,227.71,0.063]
[1737171110966,26.43337411,227.85,227.71,0.063]
[1737171111167,26.43337411,227.75,227.71,0.063]
[1737171111365,26.43337411,227.77,227.71,0.063]
[1737171111563,26.43337411,227.73,227.71,0.063]
[1737171111864,26.43337411,227.92,227.72,26.43337411]
[1737171111865,26.43337411,227.82,227.72,26.43337411]
[1737171112073,26.43337411,227.92,227.79,20.0]
[1737171112074,26.43337411,227.84,227.79,20.0]
[1737171112396,0.06332664,228.03,227.85,20.0]
[1737171112688,26.43337411,228.0,227.92,26.43337411]
[1737171112992,26.43337411,228.02,227.96,20.0]
[1737171113210,0.06332664,228.03,227.98,20.0]
[1737171113369,26.43337411,228.02,227.93,26.43337411]
[1737171113695,26.43337411,227.98,227.91,26.43337411]
[1737171113861,26.43337411,227.98,227.89,26.43337411]
[1737171114063,26.43337411,228.0,227.91,26.43337411]
[1737171114272,0.06332664,228.03,228.0,20.0]
[1737171114491,0.06332664,228.03,228.02,20.0]
[1737171114691,0.06332664,228.03,227.99,26.43337411]
[1737171114907,0.06332664,228.03,227.93,17.533775]
[1737171114908,0.06332664,228.03,227.95,26.43337411]
[1737171115110,0.06332664,228.03,228.0,20.0]
[1737171115312,1.7010038,228.32,228.02,20.0]
[1737171115481,137.25378,228.2,228.11,79.30012233]
[1737171115681,3.0,228.38,228.13,21.36263834]
[1737171115889,3.0,228.38,228.37,26.43337411]
[1737171116106,3.0,228.38,228.34,9.16]
[1737171116318,3.0,228.38,228.37,20.0]
[1737171116814,3.0,228.38,228.37,46.43337411]
[1737171117710,3.0,228.38,228.36,26.43337411]
[1737171117891,3.0,228.38,228.36,52.86674822]
[1737171118246,3.0,228.38,228.36,26.43337411]
[1737171118787,3.0,228.38,228.37,26.43337411]
[1737171118993,2.26254056,228.38,228.37,26.43337411]
[1737171119807,2.26254056,228.38,228.37,43.93255011]
[1737171119992,0.3,228.45,228.44,26.43337411]
[1737171120404,78.19868,228.55,228.47,20.0]
[1737171120732,78.19868,228.55,228.52,26.43337411]
[1737171120913,78.19868,228.55,228.47,26.43337411]
[1737171121099,78.19868,228.55,228.51,26.43337411]
[1737171121617,78.19868,228.55,228.47,26.43337411]
[1737171121804,26.43337411,228.54,228.45,26.43337411]
[1737171122012,26.43337411,228.47,228.37,35.69337411]
[1737171122324,26.43337411,228.49,228.41,26.43337411]
[1737171122533,26.43337411,228.47,228.39,26.43337411]
[1737171122729,26.43337411,228.41,228.17,0.65672147]
[1737171123025,12.4311,228.45,228.26,26.43337411]
[1737171123026,26.43337411,228.34,228.26,26.43337411]
[1737171123236,26.43337411,228.3,228.22,26.43337411]
[1737171123534,26.43337411,228.38,228.28,26.43337411]
[1737171124028,7.6589,228.44,228.35,26.43337411]
[1737171124236,26.43337411,228.37,228.27,26.43337411]
[1737171124527,26.43337411,228.31,228.23,26.43337411]
[1737171124730,26.43337411,228.33,228.23,26.43337411]
[1737171125232,91.36868,228.55,228.31,26.43337411]
[1737171125532,91.36868,228.55,228.17,39.22057966]
[1737171125533,26.43337411,228.38,228.29,26.43337411]
[1737171125828,26.43337411,228.4,228.31,26.43337411]
[1737171126026,26.43337411,228.42,228.36,20.0]
[1737171126439,26.43337411,228.4,228.31,26.43337411]
[1737171126610,26.43337411,228.36,228.29,26.43337411]
[1737171126929,78.19868,228.55,228.34,20.0]
[1737171127130,78.19868,228.55,228.31,26.43337411]
[1737171127131,26.43337411,228.43,228.36,20.0]
[1737171127499,26.43337411,228.45,228.38,20.0]
[1737171127709,26.43337411,228.46,228.37,26.43337411]
[1737171128113,26.43337411,228.42,228.35,26.43337411]
[1737171128315,26.43337411,228.38,228.29,26.43337411]
[1737171128628,26.43337411,228.43,228.37,20.0]
[1737171129217,82.57418,228.55,228.17,18.17148414]
[1737171129218,26.43337411,228.39,228.17,18.17148414]
[1737171129419,26.43337411,228.34,228.26,26.43337411]
[1737171129918,26.43337411,228.3,228.2,26.43337411]
[1737171130234,26.43337411,228.32,228.24,26.43337411]
[1737171130434,26.43337411,228.34,228.24,26.43337411]
[1737171130622,13.0828,228.35,228.28,26.43337411]
[1737171130935,26.43337411,228.34,228.24,26.43337411]
[1737171131137,13.0828,228.35,228.28,26.43337411]
[1737171131323,26.43337411,228.38,228.3,26.43337411]
[1737171131510,26.43337411,228.38,228.32,26.43337411]
[1737171131829,26.43337411,228.36,228.26,26.43337411]
[1737171132034,26.43337411,228.31,228.22,26.43337411]
[1737171132235,26.43337411,228.29,228.2,26.43337411]
[1737171132733,26.43337411,228.21,228.13,17.51774]
[1737171133031,26.43337411,228.14,228.08,0.063]
[1737171133273,26.43337411,228.1,228.08,0.063]
[1737171134025,26.43337411,228.1,227.96,47.26]
[1737171134229,26.43337411,228.03,227.96,47.26]
[1737171134436,26.43337411,228.05,227.97,26.43337411]
[1737171134735,26.43337411,227.98,227.88,26.43337411]
[1737171135330,26.43337411,228.0,227.9,26.43337411]
[1737171135730,26.43337411,228.08,227.91,0.65810988]
[1737171135914,26.43337411,228.06,227.96,26.43337411]
[1737171137965,26.43337411,228.04,227.96,26.43337411]
[1737171138342,26.43337411,228.02,227.92,26.43337411]
[1737171138552,26.43337411,227.97,227.87,26.43337411]
[1737171138756,26.43337411,227.95,227.87,26.43337411]
[1737171139646,26.43337411,227.88,227.79,35.49337411]
[1737171140043,26.43337411,227.85,227.77,26.43337411]
[1737171140661,12.9513,227.89,227.72,73.71337411]
[1737171140662,26.43337411,227.82,227.72,73.71337411]
[1737171140868,26.43337411,227.78,227.72,47.28]
[1737171141161,7.8579,227.88,227.74,26.43337411]
[1737171141368,26.43337411,227.86,227.76,26.49637411]
[1737171141573,26.43337411,227.84,227.76,26.49637411]
[1737171141749,7.8579,227.88,227.76,0.063]
[1737171141750,26.43337411,227.82,227.76,0.063]
[1737171141949,26.43337411,227.86,227.77,20.0]
[1737171142154,34.29127411,227.88,227.8,26.43337411]
[1737171142539,12.9513,228.04,227.85,46.43337411]
[1737171142843,26.43337411,227.93,227.85,46.43337411]
[1737171143046,26.43337411,227.88,227.78,26.43337411]
[1737171143663,26.43337411,227.86,227.76,26.49637411]
[1737171143971,26.43337411,227.92,227.76,0.063]
[1737171143972,26.43337411,227.82,227.76,0.063]
[1737171145063,12.9513,228.04,227.77,26.43337411]
[1737171145249,26.43337411,227.85,227.77,26.43337411]
[1737171145576,26.43337411,227.87,227.77,26.43337411]
[1737171145741,26.43337411,227.85,227.76,0.063]
[1737171146263,26.43337411,227.77,227.76,0.063]
[1737171146645,12.9513,227.79,227.76,0.063]
[1737171147051,12.9513,227.79,227.74,26.43337411]
[1737171147370,26.43337411,227.77,227.68,26.43337411]
[1737171147549,12.9513,227.79,227.72,26.43337411]
[1737171147969,12.9513,227.79,227.77,20.0]
[1737171148362,34.29127411,227.83,227.77,20.0]
[1737171148679,26.43337411,227.85,227.76,26.43337411]
[1737171149360,26.43337411,227.87,227.78,26.43337411]
[1737171149755,12.9513,227.96,227.85,20.0]
[1737171149962,26.43337411,227.93,227.85,20.0]
[1737171150648,26.43337411,227.88,227.78,26.43337411]
[1737171151574,26.1213,227.96,227.81,26.43337411]
[1737171151756,26.43337411,227.88,227.79,26.43337411]
[1737171151962,26.43337411,227.88,227.77,26.43337411]
[1737171152164,26.43337411,227.84,227.75,26.43337411]
[1737171152369,26.43337411,227.84,227.73,26.43337411]
[1737171152686,52.55467411,227.75,227.65,26.43337411]
[1737171152966,39.38467411,227.75,227.67,26.43337411]
[1737171153280,12.9513,227.75,227.69,26.43337411]
[1737171153573,12.9513,227.75,227.6,0.063]
[1737171153574,26.43337411,227.84,227.76,20.0]
[1737171153766,12.9513,227.85,227.82,20.0]
[1737171153966,26.43337411,227.84,227.75,26.43337411]
[1737171154765,12.9513,227.85,227.73,26.43337411]
[1737171154766,26.43337411,227.82,227.73,26.43337411]
[1737171155069,26.43337411,227.84,227.76,0.063]
[1737171155270,12.9513,227.85,227.79,26.43337411]
[1737171155472,0.03,227.88,227.83,26.43337411]
[1737171155797,26.43337411,227.86,227.77,26.43337411]
[1737171155977,26.43337411,227.84,227.76,0.063]
[1737171156972,26.43337411,227.82,227.76,0.063]
[1737171157277,26.43337411,227.78,227.76,0.063]
[1737171157667,26.43337411,227.78,227.71,0.063]
[1737171157864,26.43337411,227.77,227.71,0.063]
[1737171158062,20.63115914,227.88,227.72,26.43337411]
[1737171158295,26.43337411,227.82,227.72,26.43337411]
[1737171158870,26.43337411,227.78,227.71,0.063]
[1737171159685,25.01955914,227.88,227.6,0.063]
[1737171159686,26.43337411,227.73,227.6,0.063]
[1737171159984,26.43337411,227.69,227.61,26.43337411]
[1737171160188,26.43337411,227.69,227.6,0.063]
[1737171160189,26.43337411,227.67,227.6,0.063]
[1737171160357,20.0,227.72,227.6,0.063]
[1737171160777,26.43337411,227.61,227.6,0.063]
[1737171160979,26.43337411,227.7,227.51,26.43337411]
[1737171160980,26.43337411,227.59,227.51,26.43337411]
[1737171161298,12.7646,227.75,227.58,26.43337411]
[1737171161481,26.43337411,227.7,227.59,26.43337411]
[1737171161683,26.43337411,227.68,227.59,26.43337411]
[1737171161982,26.43337411,227.66,227.57,26.43337411]
[1737171162477,26.43337411,227.66,227.48,73.75337411]
[1737171162478,26.43337411,227.68,227.59,26.43337411]
[1737171162684,4.3896,227.82,227.63,26.43337411]
[1737171162872,26.43337411,227.71,227.61,26.43337411]
[1737171163310,26.43337411,227.77,227.67,26.43337411]
[1737171164083,26.43337411,227.73,227.64,26.43337411]
[1737171164761,26.43337411,227.76,227.66,26.43337411]
[1737171165064,26.43337411,227.74,227.64,26.43337411]
[1737171165388,26.43337411,227.76,227.69,20.0]
[1737171165686,26.43337411,227.74,227.64,26.43337411]
[1737171166062,12.7646,227.75,227.69,20.0]
[1737171166389,17.28186972,227.85,227.73,26.43337411]
[1737171166568,26.43337411,227.94,227.84,26.43337411]
[1737171166761,26.43337411,227.96,227.87,26.43337411]
[1737171166964,12.7646,227.98,227.79,26.43337411]
[1737171166965,26.46337411,227.88,227.79,26.43337411]
[1737171167269,0.03,227.88,227.74,26.43337411]
[1737171167595,26.43337411,227.81,227.72,26.43337411]
[1737171167777,0.03,227.88,227.76,26.43337411]
[1737171168083,26.43337411,227.86,227.76,26.43337411]
[1737171168301,26.43337411,227.87,227.77,26.43337411]
[1737171168486,15.3236,227.96,227.74,0.063]
[1737171168673,0.80516564,227.95,227.74,0.063]
[1737171168872,20.0,227.93,227.74,0.063]
[1737171169075,20.0,227.89,227.74,0.063]
[1737171169394,20.0,227.8,227.74,0.063]
[1737171169564,13.17,227.8,227.74,0.063]
[1737171169760,12.0353,227.92,227.74,0.063]
[1737171169966,26.43337411,227.83,227.74,26.49637411]
[1737171170275,26.43337411,227.79,227.74,0.063]
[1737171170890,26.43337411,227.81,227.74,0.063]
[1737171171082,26.43337411,227.81,227.75,20.0]
[1737171171285,26.43337411,227.85,227.79,20.0]
[1737171171489,26.43337411,227.87,227.81,20.0]
[1737171171669,26.43337411,227.89,227.83,20.0]
[1737171171991,6.71792428,228.14,227.87,26.43337411]
[1737171172294,17.54988,228.07,227.97,20.0]
[1737171172501,26.43337411,228.04,227.97,20.0]
[1737171172873,26.43337411,228.06,227.99,20.0]
[1737171173192,0.03,228.11,227.95,26.43337411]
[1737171173193,4.4139,228.11,227.95,26.43337411]
[1737171173372,26.43337411,228.04,227.95,26.43337411]
[1737171173696,26.43337411,228.04,227.98,20.0]
[1737171173881,0.03,228.11,227.98,20.0]
[1737171174081,26.43337411,228.04,227.98,20.0]
[1737171174381,0.03,228.11,228.0,20.0]
[1737171174585,0.03,228.11,227.92,26.43337411]
[1737171174586,26.43337411,228.1,228.04,20.0]
[1737171174801,0.03,228.11,228.07,26.43337411]
[1737171175105,0.03,228.11,228.09,26.43337411]
[1737171175908,0.03,228.11,228.1,26.43337411]
[1737171176078,0.03,228.11,228.09,26.43337411]
[1737171176400,26.43337411,228.24,228.09,31.64603362]
[1737171176585,26.43337411,228.22,228.13,26.43337411]
[1737171176973,12.0353,228.24,228.05,26.43337411]
[1737171177288,26.43337411,228.07,227.97,26.43337411]
[1737171177474,12.0353,228.24,228.05,26.43337411]
[1737171177678,26.43337411,228.14,228.05,26.43337411]
[1737171177881,26.43337411,228.12,228.03,26.43337411]
[1737171178095,26.43337411,228.12,228.06,20.0]
[1737171178403,26.43337411,228.12,228.03,26.43337411]
[1737171178593,26.43337411,228.14,228.05,26.43337411]
[1737171178978,4.3798,228.32,228.09,26.43337411]
[1737171179178,0.80516564,228.31,228.02,26.43337411]
[1737171179391,0.80516564,228.31,227.96,9.41779687]
[1737171179679,13.97516564,228.31,227.96,8.76]
[1737171179899,0.03,228.08,227.96,8.76]
[1737171180396,0.03,228.08,228.01,26.43337411]
[1737171180579,0.03,228.08,228.03,26.43337411]
[1737171180779,0.03,228.08,227.97,26.43337411]
[1737171180780,26.43337411,228.07,227.97,26.43337411]
[1737171180981,26.43337411,228.01,227.91,26.43337411]
[1737171181308,0.03,228.08,227.85,6.38879408]
[1737171181605,0.03,228.08,227.86,5.87045419]
[1737171181896,0.03,228.08,227.9,26.33232695]
[1737171182076,0.03,228.08,227.91,8.84]
[1737171182403,0.03,228.08,228.07,26.43337411]
[1737171182907,12.0353,228.25,228.07,26.43337411]
[1737171183094,26.43337411,228.17,228.07,26.43337411]
[1737171183481,26.43337411,228.15,228.05,26.43337411]
[1737171183880,26.43337411,228.13,228.05,26.43337411]
[1737171184189,26.43337411,228.15,228.05,26.43337411]
[1737171184384,12.0353,228.25,228.1,26.43337411]
[1737171184588,26.43337411,228.19,228.08,26.43337411]
[1737171184792,26.43337411,228.16,228.06,26.43337411]
[1737171185202,26.43337411,228.2,228.13,20.0]
[1737171185385,26.43337411,228.21,228.13,20.0]
[1737171185591,26.43337411,228.14,228.04,26.43337411]
[1737171185831,26.43337411,228.16,228.06,26.43337411]
[1737171186105,16.4165,228.25,227.94,9.0]
[1737171186314,26.43337411,228.15,228.05,26.43337411]
[1737171186603,26.43337411,228.13,228.03,26.43337411]
[1737171187304,4.381,228.26,228.09,26.43337411]
[1737171187506,26.43337411,228.17,228.07,26.43337411]
[1737171187706,26.43337411,228.15,228.07,26.43337411]
[1737171187888,26.43337411,228.13,228.03,26.43337411]
[1737171188087,26.43337411,228.07,227.98,26.43337411]
[1737171188298,13.0934,228.16,227.92,26.43337411]
[1737171188501,26.43337411,228.13,228.06,20.0]
[1737171188915,26.43337411,228.09,227.99,26.43337411]
[1737171189287,15.3319,228.28,228.06,26.43337411]
[1737171189490,26.43337411,228.12,228.02,26.43337411]
[1737171189697,26.43337411,228.25,227.93,9.0]
[1737171189698,26.43337411,228.08,227.98,26.43337411]
[1737171190017,26.43337411,228.06,227.96,26.43337411]
[1737171190211,26.43337411,228.1,228.0,26.43337411]
[1737171190391,26.43337411,228.12,228.02,26.43337411]
[1737171190592,15.3279,228.34,228.06,26.43337411]
[1737171190814,26.43337411,228.12,228.02,26.43337411]
[1737171191635,26.43337411,228.14,228.04,26.43337411]
[1737171191921,26.43337411,228.14,227.99,17.532553]
[1737171191922,26.43337411,228.1,228.0,26.43337411]
[1737171192230,26.43337411,228.1,227.91,9.12]
[1737171192231,26.43337411,228.08,227.98,26.43337411]
[1737171192810,26.43337411,228.06,227.96,26.43337411]
[1737171193123,26.43337411,228.01,227.91,26.43337411]
[1737171193300,26.43337411,227.99,227.89,26.43337411]
[1737171193698,39.52677411,228.01,227.91,26.43337411]
[1737171193913,13.0934,228.01,227.93,26.43337411]
[1737171194228,13.0934,228.01,227.95,26.43337411]
[1737171194523,26.43337411,228.09,228.0,26.43337411]
[1737171194692,26.43337411,228.06,227.87,5.97175399]
[1737171194899,26.43337411,228.14,227.92,26.43337411]
[1737171195114,20.0,228.1,227.83,17.543527]
[1737171195322,13.17,228.12,227.74,0.063]
[1737171195525,13.17,228.08,227.74,0.063]
[1737171195834,20.0,228.09,227.74,0.063]
[1737171195835,13.0934,228.11,227.78,23.84378512]
[1737171196002,13.0934,228.11,227.78,23.18549316]
[1737171196200,26.43337411,227.99,227.91,20.0]
[1737171196527,26.43337411,227.99,227.88,26.43337411]
[1737171196528,26.43337411,228.03,227.96,20.0]
[1737171196830,26.43337411,227.97,227.87,26.43337411]
[1737171197026,10.9542,228.23,227.81,26.43337411]
[1737171197230,38.95657411,228.04,227.93,26.43337411]
[1737171197436,26.43337411,228.0,227.91,26.43337411]
[1737171197616,38.95657411,228.04,227.94,26.43337411]
[1737171197805,12.5232,228.04,227.96,26.43337411]
[1737171198229,12.5232,228.04,227.98,26.43337411]
[1737171198414,12.5232,228.04,227.95,26.43337411]
[1737171198802,38.95657411,228.04,227.93,26.43337411]
[1737171199437,26.43337411,228.02,227.9,26.43337411]
[1737171199741,26.43337411,227.93,227.84,26.43337411]
[1737171199901,26.43337411,227.91,227.74,0.063]
[1737171200106,26.43337411,227.85,227.75,26.43337411]
[1737171200652,26.43337411,227.85,227.77,26.43337411]
[1737171200805,12.5232,227.86,227.79,26.43337411]
[1737171201011,12.5232,227.86,227.81,26.43337411]
[1737171201336,26.43337411,227.94,227.84,46.43337411]
[1737171201503,26.43337411,227.92,227.82,26.43337411]
[1737171201834,26.43337411,227.88,227.78,26.43337411]
[1737171202223,4.3876,227.92,227.79,0.063]
[1737171202224,26.43337411,227.86,227.79,0.063]
[1737171202544,26.43337411,227.83,227.79,0.063]
[1737171202917,26.43337411,227.81,227.74,0.063]
[1737171203145,38.95657411,227.75,227.68,0.063]
[1737171203442,26.43337411,227.72,227.68,0.063]
[1737171203804,26.43337411,227.74,227.68,0.063]
[1737171204021,38.95657411,227.75,227.68,0.063]
[1737171204216,26.43337411,227.73,227.68,0.063]
[1737171204414,26.43337411,227.71,227.68,0.063]
[1737171205347,26.43337411,227.69,227.68,0.063]
[1737171205629,12.5232,227.75,227.68,0.063]
[1737171205937,12.5232,227.75,227.49,47.97906337]
[1737171205938,26.43337411,227.7,227.6,26.49637411]
[1737171206242,26.43337411,227.68,227.6,26.49637411]
[1737171206433,26.43337411,227.66,227.6,0.063]
[1737171206809,26.43337411,227.68,227.6,0.063]
[1737171208034,26.43337411,227.64,227.6,0.063]
[1737171208542,26.43337411,227.62,227.6,0.063]
[1737171208718,26.43337411,227.58,227.53,0.063]
[1737171209111,26.43337411,227.6,227.53,0.063]
[1737171209737,26.43337411,227.58,227.53,0.063]
[1737171209942,37.3231,227.74,227.53,26.49637411]
[1737171209943,15.3683,227.74,227.53,26.49637411]